bitfinex/quotes_BTCUSD_20241102
["timestamp","ask_amount","ask_price","bid_price","bid_amount"]
[1730540983582,0.90386268,69626.0,69625.0,1.7e-07]
[1730540983788,0.88986268,69626.0,69625.0,1.7e-07]
[1730540984006,0.90386268,69626.0,69625.0,1.7e-07]
[1730540984219,0.91786268,69626.0,69625.0,1.7e-07]
[1730540984723,0.90386268,69626.0,69625.0,1.7e-07]
[1730540984953,0.88298438,69626.0,69625.0,1.7e-07]
[1730540985158,0.90386221,69626.0,69625.0,1.7e-07]
[1730540985569,0.91786221,69626.0,69625.0,1.7e-07]
[1730540986246,0.005176,69618.0,69617.0,0.0046513]
[1730540986452,0.50216499,69618.0,69617.0,0.0046513]
[1730540986674,0.50416499,69618.0,69617.0,0.0046513]
[1730540987555,0.51816499,69618.0,69617.0,0.0046513]
[1730540987778,0.51807114,69618.0,69617.0,0.0046513]
[1730540988231,0.51808092,69618.0,69617.0,0.0046513]
[1730540988452,0.53008092,69618.0,69617.0,0.0046513]
[1730540989313,0.53208092,69618.0,69617.0,0.0046513]
[1730540990413,0.57679273,69618.0,69617.0,0.0046513]
[1730540991780,0.57682604,69618.0,69617.0,0.0046513]
[1730540992435,0.57694214,69618.0,69617.0,0.0046513]
[1730540993104,0.57494214,69618.0,69617.0,0.0046513]
[1730540993330,0.56994214,69618.0,69617.0,0.0046513]
[1730540993539,0.56994214,69618.0,69617.0,0.0837513]
[1730540993540,0.44214337,69618.0,69617.0,0.0837513]
[1730540993771,0.53072031,69618.0,69617.0,0.0837513]
[1730540993994,0.35631169,69618.0,69617.0,0.0837513]
[1730540994199,0.5089061,69618.0,69617.0,0.0837513]
[1730540994863,0.59469527,69618.0,69617.0,0.0837513]
[1730540995292,0.58126415,69618.0,69617.0,0.0837513]
[1730540995497,0.63945638,69618.0,69617.0,0.0837513]
[1730540995711,0.62601527,69618.0,69617.0,0.0837513]
[1730540995935,0.63945517,69618.0,69617.0,0.0837513]
[1730540996395,0.553666,69618.0,69617.0,0.0837513]
[1730540998114,0.548666,69618.0,69617.0,0.0837513]
[1730540998324,0.66090269,69618.0,69617.0,0.0837513]
[1730540998749,0.553666,69618.0,69617.0,0.0837513]
[1730540998969,0.5402261,69618.0,69617.0,0.0837513]
[1730540999220,0.55366749,69618.0,69617.0,0.0837513]
[1730540999428,0.66090418,69618.0,69617.0,0.0837513]
[1730541001443,0.55366749,69618.0,69617.0,0.0837513]
[1730541001657,0.55367042,69618.0,69617.0,0.0837513]
[1730541002092,0.66096224,69618.0,69617.0,0.0837513]
[1730541002521,0.66098404,69618.0,69617.0,0.0837513]
[1730541003408,0.55367042,69618.0,69617.0,0.0837513]
[1730541004773,0.55325412,69618.0,69617.0,0.0837513]
[1730541005222,0.54825412,69618.0,69617.0,0.0837513]
[1730541005895,0.5482651,69618.0,69617.0,0.0837513]
[1730541008340,0.67710423,69618.0,69617.0,0.0837513]
[1730541008905,0.67710345,69618.0,69617.0,0.0837513]
[1730541009313,0.54826432,69618.0,69617.0,0.0837513]
[1730541010732,0.43893175,69618.0,69617.0,0.0837513]
[1730541011145,0.43910775,69618.0,69617.0,0.1783513]
[1730541011380,0.39435663,69618.0,69617.0,0.1783513]
[1730541011610,0.29435663,69618.0,69617.0,0.1783513]
[1730541012470,0.28090211,69618.0,69617.0,0.1783513]
[1730541012672,0.29417781,69618.0,69617.0,0.1783513]
[1730541012802,0.29435381,69618.0,69617.0,0.1783513]
[1730541013785,0.29554003,69618.0,69617.0,0.1783513]
[1730541014720,0.29536403,69618.0,69617.0,0.1783513]
[1730541014932,0.29554003,69618.0,69617.0,0.1783513]
[1730541015551,0.28154003,69618.0,69617.0,0.1783513]
[1730541015759,0.26754003,69618.0,69617.0,0.1783513]
[1730541016090,0.29554003,69618.0,69617.0,0.1783513]
[1730541016460,0.25408833,69618.0,69617.0,0.1783513]
[1730541016663,0.29553326,69618.0,69617.0,0.1783513]
[1730541019716,0.28208833,69618.0,69617.0,0.1783513]
[1730541019951,0.40468797,69618.0,69617.0,0.1783513]
[1730541021420,0.40451197,69618.0,69617.0,0.1783513]
[1730541021685,0.40468797,69618.0,69617.0,0.1783513]
[1730541022791,0.44949375,69618.0,69617.0,0.1783513]
[1730541023095,0.4492912,69618.0,69617.0,0.1783513]
[1730541023560,0.44929261,69618.0,69617.0,0.1783513]
[1730541026972,0.43584813,69618.0,69617.0,0.1783513]
[1730541027187,0.44929609,69618.0,69617.0,0.1783513]
[1730541027415,0.43584813,69618.0,69617.0,0.1783513]
[1730541027635,0.44930993,69618.0,69617.0,0.1783513]
[1730541030426,0.44930993,69618.0,69617.0,0.0046513]
[1730541030691,0.44931259,69618.0,69617.0,0.0046513]
[1730541031983,0.44913659,69618.0,69617.0,0.0046513]
[1730541032195,0.44931259,69618.0,69617.0,0.0046513]
[1730541033507,0.44913659,69618.0,69617.0,0.0046513]
[1730541033726,0.44931259,69618.0,69617.0,0.0046513]
[1730541034435,0.54931552,69618.0,69617.0,0.0046513]
[1730541038148,0.5493183,69618.0,69617.0,0.0046513]
[1730541038431,0.67836817,69618.0,69617.0,0.0046513]
[1730541038643,0.67836909,69618.0,69617.0,0.0046513]
[1730541042059,0.67837177,69618.0,69617.0,0.0046513]
[1730541045403,0.57086185,69618.0,69617.0,0.0046513]
[1730541046130,0.53664969,69618.0,69617.0,0.0046513]
[1730541046347,0.200726,69617.0,69616.0,0.00087144]
[1730541046556,0.56367799,69617.0,69616.0,0.00087144]
[1730541048499,0.57767799,69617.0,69616.0,0.00087144]
[1730541048749,0.59167799,69617.0,69616.0,0.00087144]
[1730541049798,0.578215,69617.0,69616.0,0.00087144]
[1730541050005,0.59167791,69617.0,69616.0,0.00087144]
[1730541050264,0.55667434,69617.0,69616.0,0.00087144]
[1730541050473,0.59167783,69617.0,69616.0,0.00087144]
[1730541053579,0.59190637,69617.0,69616.0,0.00087144]
[1730541055518,0.46274157,69617.0,69616.0,0.00087144]
[1730541057304,0.46274096,69617.0,69616.0,0.00087144]
[1730541058366,0.42773529,69617.0,69616.0,0.00087144]
[1730541058571,0.46274125,69617.0,69616.0,0.00087144]
[1730541060092,0.20112,69611.0,69608.0,0.21508923]
[1730541060315,0.16515874,69609.0,69608.0,0.21508923]
[1730541060516,0.100563,69608.0,69607.0,0.06358467]
[1730541060736,0.13556896,69608.0,69607.0,0.06358467]
[1730541061387,0.13556943,69608.0,69607.0,0.06358467]
[1730541061788,0.13756943,69608.0,69607.0,0.06358467]
[1730541063043,0.14056943,69608.0,69607.0,0.06358467]
[1730541063428,0.14056998,69608.0,69607.0,0.06358467]
[1730541063791,0.14056998,69608.0,69605.0,0.0816]
[1730541063792,0.100566,69606.0,69605.0,0.0816]
[1730541064011,0.20017673,69606.0,69605.0,0.0816]
[1730541064228,0.20017525,69606.0,69605.0,0.0816]
[1730541065297,0.20017525,69606.0,69605.0,0.0826]
[1730541065471,0.20017281,69606.0,69605.0,0.0826]
[1730541065881,0.20017281,69606.0,69605.0,0.001]
[1730541066439,0.21686458,69606.0,69605.0,0.001]
[1730541066853,0.20017281,69606.0,69605.0,0.001]
[1730541067060,0.20015747,69606.0,69605.0,0.001]
[1730541070040,0.3967549,69606.0,69605.0,0.001]
[1730541070462,0.25410184,69606.0,69605.0,0.001]
[1730541070722,0.28908326,69606.0,69605.0,0.001]
[1730541071338,0.28908326,69606.0,69605.0,0.001822]
[1730541072269,0.28910034,69606.0,69605.0,0.001822]
[1730541072921,0.28927634,69606.0,69605.0,0.001822]
[1730541073122,0.33411917,69606.0,69605.0,0.000822]
[1730541073324,0.32259214,69606.0,69605.0,0.000822]
[1730541073728,0.42259214,69606.0,69605.0,0.000822]
[1730541073953,0.40913775,69606.0,69605.0,0.000822]
[1730541074157,0.42858634,69606.0,69605.0,0.000822]
[1730541074684,0.42258634,69606.0,69605.0,0.000822]
[1730541075090,0.43258634,69606.0,69605.0,0.000822]
[1730541076533,0.56159538,69606.0,69605.0,0.000822]
[1730541076737,0.77998554,69606.0,69605.0,0.000822]
[1730541076937,0.65669631,69606.0,69605.0,0.000822]
[1730541077351,0.67819113,69606.0,69605.0,0.000822]
[1730541077555,0.64324772,69606.0,69605.0,0.000822]
[1730541077765,0.67817594,69606.0,69605.0,0.000822]
[1730541077980,0.54917321,69606.0,69605.0,0.000822]
[1730541078388,0.100583,69594.0,69592.0,0.001624]
[1730541078621,0.13551122,69594.0,69592.0,0.001624]
[1730541079475,0.17848342,69594.0,69592.0,0.001624]
[1730541079855,0.28763999,69594.0,69592.0,0.001624]
[1730541080069,0.39679656,69594.0,69592.0,0.001624]
[1730541080324,0.48230842,69594.0,69592.0,0.001624]
[1730541080456,0.39634748,69594.0,69592.0,0.001624]
[1730541080674,0.39734748,69594.0,69593.0,0.002624]
[1730541080879,0.39734748,69594.0,69593.0,0.001624]
[1730541081094,0.50576368,69594.0,69593.0,0.001624]
[1730541081287,0.50576368,69594.0,69593.0,0.002624]
[1730541081528,0.48503315,69594.0,69593.0,0.002624]
[1730541081737,0.48503315,69594.0,69593.0,0.001624]
[1730541081940,0.50903315,69594.0,69593.0,0.001624]
[1730541082343,0.61635408,69594.0,69593.0,0.001624]
[1730541082563,0.63781436,69594.0,69593.0,0.001624]
[1730541082797,0.52865779,69594.0,69593.0,0.001624]
[1730541083333,0.31218029,69594.0,69593.0,0.001624]
[1730541083572,0.20239892,69594.0,69593.0,0.001624]
[1730541084458,0.18896499,69594.0,69593.0,0.001624]
[1730541084670,0.124583,69594.0,69593.0,0.001624]
[1730541084894,0.13799057,69594.0,69593.0,0.001624]
[1730541085113,0.20237256,69594.0,69593.0,0.001624]
[1730541085533,0.13799057,69594.0,69593.0,0.001624]
[1730541086436,0.18089234,69594.0,69593.0,0.001624]
[1730541089616,0.13799057,69594.0,69593.0,0.001624]
[1730541090228,0.18089234,69594.0,69593.0,0.001624]
[1730541090472,0.13799057,69594.0,69593.0,0.001624]
[1730541091798,0.13798565,69594.0,69593.0,0.001624]
[1730541095616,0.124583,69594.0,69593.0,0.001624]
[1730541095870,0.1379878,69594.0,69593.0,0.001624]
[1730541096790,0.15943908,69594.0,69593.0,0.001624]
[1730541102080,0.33288917,69594.0,69593.0,0.001624]
[1730541102285,0.47212952,69594.0,69593.0,0.001624]
[1730541102514,0.42130038,69594.0,69593.0,0.001624]
[1730541102723,0.40645622,69594.0,69592.0,0.00132637]
[1730541102885,0.28814481,69593.0,69592.0,0.00132637]
[1730541103101,0.13547956,69593.0,69592.0,0.00132637]
[1730541103517,0.19978595,69593.0,69592.0,0.00132637]
[1730541104094,0.21078595,69593.0,69592.0,0.00132637]
[1730541104469,0.14647956,69593.0,69592.0,0.00132637]
[1730541104843,0.13547956,69593.0,69592.0,0.00132637]
[1730541105257,0.15947956,69593.0,69592.0,0.00132637]
[1730541105487,0.31302269,69593.0,69592.0,0.00132637]
[1730541105682,0.15947956,69593.0,69592.0,0.00132637]
[1730541105887,0.20235919,69593.0,69592.0,0.00132637]
[1730541106303,0.16746363,69593.0,69592.0,0.00132637]
[1730541106506,0.15951766,69593.0,69592.0,0.00132637]
[1730541106766,0.20239762,69593.0,69592.0,0.00132637]
[1730541107380,0.15951766,69593.0,69592.0,0.00132637]
[1730541107585,0.35783573,69593.0,69592.0,0.00132637]
[1730541107785,0.2238469,69593.0,69592.0,0.00132637]
[1730541108042,0.15951766,69593.0,69592.0,0.00132637]
[1730541109533,0.22384615,69593.0,69592.0,0.00132637]
[1730541110483,0.26863295,69593.0,69592.0,0.00132637]
[1730541110912,0.22384615,69593.0,69592.0,0.00132637]
[1730541111318,0.15951766,69593.0,69592.0,0.00132637]
[1730541111524,0.18031105,69593.0,69592.0,0.00132637]
[1730541111979,0.2586746,69593.0,69592.0,0.00132637]
[1730541112225,0.19431105,69593.0,69592.0,0.00132637]
[1730541112427,0.43369394,69593.0,69592.0,0.00132637]
[1730541112850,0.44769394,69593.0,69592.0,0.00132637]
[1730541113013,0.43427068,69593.0,69592.0,0.00132637]
[1730541113225,0.44771468,69593.0,69592.0,0.00132637]
[1730541113867,0.36203437,69593.0,69592.0,0.00132637]
[1730541114339,0.46933902,69593.0,69592.0,0.00132637]
[1730541114504,0.44789328,69593.0,69592.0,0.00132637]
[1730541115490,0.36203437,69593.0,69592.0,0.00132637]
[1730541116482,0.46933902,69593.0,69592.0,0.00132637]
[1730541117123,0.43438462,69593.0,69592.0,0.00132637]
[1730541117350,0.4693405,69593.0,69592.0,0.00132637]
[1730541117567,0.36203585,69593.0,69592.0,0.00132637]
[1730541119475,0.36368007,69593.0,69592.0,0.00132637]
[1730541120401,0.32872397,69593.0,69592.0,0.00132637]
[1730541120620,0.36369067,69593.0,69592.0,0.00132637]
[1730541123074,0.5438132,69593.0,69592.0,0.00132637]
[1730541123287,0.72308364,69593.0,69592.0,0.00132637]
[1730541123457,0.100605,69579.0,69578.0,0.21508923]
[1730541123659,0.13557194,69579.0,69578.0,0.35354448]
[1730541123861,0.13557194,69579.0,69578.0,0.13845525]
[1730541124530,0.2001053,69579.0,69578.0,0.13845525]
[1730541124734,0.2011053,69579.0,69578.0,0.13845525]
[1730541126551,0.20609391,69579.0,69578.0,0.13845525]
[1730541126758,0.20509391,69579.0,69578.0,0.13845525]
[1730541126974,0.18113836,69579.0,69578.0,0.13845525]
[1730541127192,0.21609391,69579.0,69578.0,0.13845525]
[1730541127410,0.21109391,69579.0,69578.0,0.13845525]
[1730541127633,0.22209391,69579.0,69578.0,0.13845525]
[1730541128475,0.100606,69578.0,69577.0,0.001626]
[1730541128684,0.17857815,69578.0,69577.0,0.001626]
[1730541128893,0.13555811,69578.0,69577.0,0.001626]
[1730541129094,0.20009147,69578.0,69577.0,0.001626]
[1730541129544,0.28914671,69578.0,69577.0,0.001626]
[1730541129759,0.30214671,69578.0,69577.0,0.001626]
[1730541129968,0.31214671,69578.0,69577.0,0.001626]
[1730541130208,0.29914671,69578.0,69577.0,0.001626]
[1730541130446,0.39914991,69578.0,69577.0,0.001626]
[1730541130679,0.41315081,69578.0,69577.0,0.001626]
[1730541130913,0.38915081,69578.0,69577.0,0.001626]
[1730541131367,0.42466536,69578.0,69577.0,0.001626]
[1730541131578,0.40313741,69578.0,69577.0,0.001626]
[1730541131841,0.31714671,69578.0,69577.0,0.001626]
[1730541132500,0.40312518,69578.0,69577.0,0.001626]
[1730541132920,0.4031246,69578.0,69577.0,0.001626]
[1730541133632,0.40311482,69578.0,69577.0,0.001626]
[1730541134085,0.40279729,69578.0,69577.0,0.001626]
[1730541134298,0.16355811,69578.0,69577.0,0.001626]
[1730541134504,0.3168885,69578.0,69577.0,0.001626]
[1730541134707,0.16355811,69578.0,69577.0,0.001626]
[1730541134879,0.22802965,69578.0,69577.0,0.001626]
[1730541135471,0.40298674,69578.0,69577.0,0.001626]
[1730541135848,0.51214331,69578.0,69577.0,0.001626]
[1730541136050,0.31701809,69578.0,69577.0,0.001626]
[1730541136290,0.42617466,69578.0,69577.0,0.001626]
[1730541137397,0.42613663,69578.0,69577.0,0.001626]
[1730541137610,0.31698006,69578.0,69577.0,0.001626]
[1730541138802,0.40291443,69578.0,69577.0,0.001626]
[1730541141088,0.40290221,69578.0,69577.0,0.001626]
[1730541141316,0.53780407,69578.0,69577.0,0.001626]
[1730541141532,0.53795909,69578.0,69577.0,0.001626]
[1730541143084,0.53655602,69578.0,69577.0,0.001626]
[1730541145139,0.45064806,69578.0,69577.0,0.001626]
[1730541145360,0.55803301,69578.0,69577.0,0.001626]
[1730541146465,0.52313115,69578.0,69577.0,0.001626]
[1730541147800,0.52244224,69578.0,69577.0,0.001626]
[1730541149122,0.50844224,69578.0,69577.0,0.001626]
[1730541149354,0.41511581,69578.0,69577.0,0.001626]
[1730541149581,0.40111581,69578.0,69577.0,0.001626]
[1730541149800,0.41511581,69578.0,69577.0,0.001626]
[1730541152470,0.41506227,69578.0,69577.0,0.001626]
[1730541154184,0.52236459,69578.0,69577.0,0.001626]
[1730541154859,0.48747508,69578.0,69577.0,0.001626]
[1730541155092,0.41508353,69578.0,69577.0,0.001626]
[1730541155768,0.41508306,69578.0,69577.0,0.001626]
[1730541156907,0.41505478,69578.0,69577.0,0.001626]
[1730541158878,0.4150686,69578.0,69577.0,0.001626]
[1730541159547,0.52235506,69578.0,69577.0,0.001626]
[1730541160681,0.56711607,69578.0,69577.0,0.001626]
[1730541161524,0.56762628,69578.0,69577.0,0.001626]
[1730541163513,0.46031239,69578.0,69577.0,0.001626]
[1730541165438,0.42538827,69578.0,69577.0,0.001626]
[1730541165622,0.46033386,69578.0,69577.0,0.001626]
[1730541166022,0.46034222,69578.0,69577.0,0.001626]
[1730541171187,0.100176,69577.0,69567.0,0.0929]
[1730541171407,0.100615,69572.0,69567.0,0.0929]
[1730541171620,0.22150189,69572.0,69567.0,0.0929]
[1730541171834,0.37335551,69572.0,69567.0,0.0929]
[1730541172715,0.37336588,69572.0,69567.0,0.0929]
[1730541173532,0.28742458,69572.0,69567.0,0.0929]
[1730541173940,0.30742458,69572.0,69567.0,0.0929]
[1730541174143,0.30782042,69572.0,69567.0,0.0929]
[1730541175297,0.30784976,69572.0,69567.0,0.0929]
[1730541175522,0.30784976,69572.0,69555.0,0.101452]
[1730541175523,0.30784976,69572.0,69562.0,0.0903]
[1730541175793,0.35266004,69572.0,69562.0,0.1718]
[1730541175991,0.46181661,69572.0,69562.0,0.1718]
[1730541179778,0.42580086,69572.0,69562.0,0.1718]
[1730541180009,0.46073688,69572.0,69562.0,0.1718]
[1730541180909,0.46073639,69572.0,69562.0,0.1718]
[1730541181572,0.46073624,69572.0,69562.0,0.1718]
[1730541182256,0.55463624,69572.0,69562.0,0.1718]
[1730541183530,0.78378078,69572.0,69562.0,0.1718]
[1730541184059,0.77378078,69572.0,69562.0,0.1718]
[1730541184295,0.76378078,69572.0,69556.0,0.004824]
[1730541184523,0.88229275,69572.0,69557.0,0.1718]
[1730541184751,0.89329275,69572.0,69558.0,0.21508923]
[1730541184967,0.88229275,69572.0,69558.0,0.21508923]
[1730541185187,0.89429275,69572.0,69558.0,0.21508923]
[1730541185610,0.78513618,69572.0,69558.0,0.21508923]
[1730541185841,0.7502008,69572.0,69558.0,0.21508923]
[1730541186065,0.77411789,69572.0,69558.0,0.21508923]
[1730541186272,0.100633,69559.0,69558.0,0.21508923]
[1730541186483,0.13555009,69559.0,69558.0,0.21508923]
[1730541186703,0.100635,69558.0,69557.0,0.1718]
[1730541186925,0.13555209,69558.0,69557.0,0.31025525]
[1730541188288,0.11406465,69558.0,69557.0,0.31025525]
[1730541189218,0.12406465,69558.0,69557.0,0.31025525]
[1730541189466,0.110635,69558.0,69557.0,0.31025525]
[1730541189694,0.12405707,69558.0,69557.0,0.31107625]
[1730541190134,0.13405707,69558.0,69557.0,0.31107625]
[1730541191035,0.19845815,69558.0,69557.0,0.31107625]
[1730541191704,0.13405707,69558.0,69557.0,0.31107625]
[1730541193014,0.13405102,69558.0,69557.0,0.31107625]
[1730541193476,0.13405061,69558.0,69557.0,0.31107625]
[1730541196722,0.120635,69558.0,69557.0,0.31107625]
[1730541196949,0.1340507,69558.0,69557.0,0.31107625]
[1730541198739,0.0334157,69558.0,69557.0,0.56188175]
[1730541198999,0.0334157,69558.0,69557.0,0.53069282]
[1730541199175,0.0334157,69558.0,69557.0,0.53269282]
[1730541199384,0.0334157,69558.0,69557.0,0.53069282]
[1730541199827,0.21508923,69571.0,69565.0,0.201249]
[1730541200050,0.21508923,69571.0,69570.0,0.1674]
[1730541200292,0.21508923,69571.0,69570.0,0.30585525]
[1730541200747,0.100613,69573.0,69570.0,0.30585525]
[1730541200963,0.100613,69573.0,69571.0,0.13845525]
[1730541201404,0.100614,69573.0,69571.0,0.13845525]
[1730541201641,0.100615,69572.0,69571.0,0.13845525]
[1730541202871,0.100615,69572.0,69560.0,0.201263]
[1730541202872,0.100633,69560.0,69557.0,0.016645]
[1730541204460,0.100633,69559.0,69558.0,0.13845525]
[1730541205853,0.101633,69559.0,69558.0,0.13845525]
[1730541206549,0.100633,69559.0,69558.0,0.13845525]
[1730541206768,0.103633,69559.0,69558.0,0.13845525]
[1730541206995,0.110633,69559.0,69558.0,0.13945525]
[1730541207225,0.107633,69559.0,69558.0,0.13945525]
[1730541207408,0.116633,69559.0,69558.0,0.13945525]
[1730541208554,0.100633,69559.0,69558.0,0.13845525]
[1730541208968,0.109633,69559.0,69558.0,0.13945525]
[1730541209638,0.100633,69559.0,69558.0,0.13845525]
[1730541209861,0.110633,69559.0,69558.0,0.13845525]
[1730541210086,0.110633,69559.0,69558.0,0.13945525]
[1730541210087,0.120633,69559.0,69558.0,0.13945525]
[1730541210312,0.110633,69559.0,69558.0,0.13945525]
[1730541210759,0.121633,69559.0,69558.0,0.13945525]
[1730541211844,0.13504334,69559.0,69558.0,0.13945525]
[1730541213474,0.13504334,69559.0,69558.0,0.001]
[1730541215227,0.121633,69559.0,69558.0,0.001]
[1730541215435,0.13504279,69559.0,69558.0,0.001]
[1730541218908,0.13504443,69559.0,69558.0,0.001]
[1730541219846,0.13504663,69559.0,69558.0,0.001]
[1730541221806,0.2442032,69559.0,69558.0,0.001]
[1730541222462,0.24420768,69559.0,69558.0,0.001]
[1730541224049,0.13505111,69559.0,69558.0,0.13945525]
[1730541225870,0.121633,69559.0,69558.0,0.13945525]
[1730541226084,0.13505338,69559.0,69558.0,0.13945525]
[1730541226307,0.121633,69559.0,69558.0,0.13945525]
[1730541226536,0.13505366,69559.0,69558.0,0.13945525]
[1730541227438,0.13505366,69559.0,69558.0,0.14027725]
[1730541227644,0.13669766,69559.0,69558.0,0.14027725]
[1730541229656,0.23243357,69559.0,69558.0,0.14027725]
[1730541229892,0.24585637,69559.0,69558.0,0.14027725]
[1730541232133,0.23243357,69559.0,69558.0,0.14027725]
[1730541232347,0.24586342,69559.0,69558.0,0.14027725]
[1730541232806,0.24586814,69559.0,69558.0,0.14027725]
[1730541237373,0.24587474,69559.0,69558.0,0.14027725]
[1730541237788,0.24587474,69559.0,69558.0,0.001822]
[1730541241903,0.13671817,69559.0,69558.0,0.001822]
[1730541242797,0.13671881,69559.0,69558.0,0.001822]
[1730541244368,0.13671881,69559.0,69558.0,0.14027725]
[1730541246885,0.1367184,69559.0,69558.0,0.14027725]
[1730541250071,0.123277,69559.0,69558.0,0.14027725]
[1730541250319,0.13671722,69559.0,69558.0,0.14027725]
[1730541253633,0.123277,69559.0,69558.0,0.14027725]
[1730541253877,0.13671929,69559.0,69558.0,0.14027725]
[1730541258318,0.03608629,69559.0,69558.0,0.44543978]
[1730541258537,0.03608629,69559.0,69558.0,0.53519282]
[1730541259199,0.03608629,69559.0,69558.0,0.53719282]
[1730541259200,0.02508629,69559.0,69558.0,0.53719282]
[1730541259433,0.02508629,69559.0,69558.0,0.53419282]
[1730541259434,0.01508629,69559.0,69558.0,0.53419282]
[1730541259665,0.01508629,69559.0,69558.0,0.64001755]
[1730541259898,0.01508629,69559.0,69558.0,0.53519282]
[1730541260128,0.01508629,69559.0,69558.0,0.53419282]
[1730541260392,0.01508629,69559.0,69558.0,0.53819282]
[1730541260633,0.01608629,69559.0,69558.0,0.53919282]
[1730541261334,0.002644,69559.0,69558.0,0.53519282]
[1730541261773,0.003644,69559.0,69558.0,0.64509213]
[1730541263080,0.003644,69559.0,69558.0,0.54619282]
[1730541271325,0.003644,69559.0,69558.0,0.43703625]
[1730541278686,0.003644,69559.0,69558.0,0.43903625]
[1730541280275,0.003644,69559.0,69558.0,0.43703625]
[1730541282458,0.003644,69559.0,69558.0,0.43903625]
[1730541286435,0.003644,69559.0,69558.0,0.53902714]
[1730541287514,0.003644,69559.0,69558.0,0.43903625]
[1730541293593,0.003644,69559.0,69558.0,0.83516257]
[1730541293808,0.003644,69559.0,69558.0,0.726006]
[1730541294259,0.003644,69559.0,69558.0,0.77048237]
[1730541294466,0.003644,69559.0,69558.0,0.77047248]
[1730541294676,0.003644,69559.0,69558.0,0.90894978]
[1730541294883,0.003644,69559.0,69558.0,0.97362998]
[1730541295110,0.003644,69559.0,69558.0,0.86447341]
[1730541298215,0.003644,69559.0,69558.0,0.89325341]
[1730541299552,0.003644,69559.0,69558.0,0.89319084]
[1730541299988,0.002644,69559.0,69558.0,0.89219084]
[1730541300206,0.001644,69559.0,69558.0,0.88119084]
[1730541300432,0.002644,69559.0,69558.0,0.89519084]
[1730541300875,0.003644,69559.0,69558.0,0.89119084]
[1730541301098,0.004644,69559.0,69558.0,0.90519084]
[1730541301313,0.003644,69559.0,69558.0,0.89519084]
[1730541301806,0.004644,69559.0,69558.0,1.10465741]
[1730541302708,0.004644,69559.0,69558.0,1.10464674]
[1730541306773,0.004644,69559.0,69558.0,1.23377364]
[1730541307218,0.004644,69559.0,69558.0,1.23365195]
[1730541307647,0.004644,69559.0,69558.0,1.10457961]
[1730541307871,0.21508923,69570.0,69569.0,0.52639957]
[1730541308098,0.21508923,69570.0,69569.0,0.82367431]
[1730541308573,0.001642,69571.0,69570.0,0.240442]
[1730541308790,0.001642,69571.0,69570.0,0.37889725]
[1730541309474,0.001642,69571.0,69570.0,0.42189715]
[1730541309684,0.001642,69571.0,69570.0,0.56037445]
[1730541310543,0.002642,69571.0,69570.0,0.56937445]
[1730541311723,0.002642,69571.0,69570.0,0.58036186]
[1730541311943,0.002642,69571.0,69570.0,0.75716186]
[1730541312370,0.002642,69571.0,69570.0,0.86631843]
[1730541312618,0.002642,69571.0,69570.0,0.90964112]
[1730541312855,0.002642,69571.0,69570.0,0.95262843]
[1730541313366,0.002642,69571.0,69570.0,0.98140843]
[1730541314509,0.002642,69571.0,69570.0,0.86125186]
[1730541314718,0.002642,69571.0,69570.0,0.83226455]
[1730541315368,0.001642,69571.0,69570.0,0.82326455]
[1730541315583,0.002642,69571.0,69570.0,0.83726455]
[1730541318967,0.001642,69571.0,69570.0,0.82326455]
[1730541319193,0.001642,69571.0,69570.0,0.80926455]
[1730541319426,0.002642,69571.0,69570.0,0.83726455]
[1730541319884,0.001642,69571.0,69570.0,0.82326455]
[1730541320370,0.002642,69571.0,69570.0,0.83726455]
[1730541320811,0.002642,69571.0,69570.0,0.82326455]
[1730541321063,0.002642,69571.0,69570.0,0.83726455]
[1730541323302,0.002642,69571.0,69570.0,1.14551269]
[1730541327898,0.002642,69571.0,69570.0,0.71892539]
[1730541329679,0.002642,69571.0,69570.0,0.72092539]
[1730541329907,0.002642,69571.0,69570.0,0.71892539]
[1730541330775,0.002642,69571.0,69570.0,0.72092539]
[1730541331704,0.002642,69571.0,69570.0,0.71892539]
[1730541331916,0.002642,69571.0,69570.0,0.85740269]
[1730541334157,0.002642,69571.0,69570.0,0.85940269]
[1730541334581,0.002642,69571.0,69570.0,0.90239026]
[1730541334805,0.002642,69571.0,69570.0,0.85940269]
[1730541335236,0.002642,69571.0,69570.0,0.55115455]
[1730541335695,0.002642,69571.0,69570.0,0.77447666]
[1730541336145,0.002642,69571.0,69570.0,0.97877666]
[1730541336848,0.002642,69571.0,69570.0,0.7329953]
[1730541337708,0.002642,69571.0,69570.0,0.92812702]
[1730541337920,0.002642,69571.0,69570.0,0.84215187]
[1730541338790,0.002642,69571.0,69570.0,0.68331112]
[1730541339006,0.002642,69571.0,69570.0,0.84228529]
[1730541340195,0.002642,69571.0,69570.0,1.02358529]
[1730541342135,0.002642,69571.0,69570.0,1.06806369]
[1730541342586,0.002642,69571.0,69570.0,1.15437369]
[1730541346794,0.002642,69571.0,69570.0,1.28357175]
[1730541348140,0.21673323,69592.0,69584.0,0.33073414]
[1730541348384,0.21673323,69592.0,69584.0,0.48075502]
[1730541348588,0.21673323,69592.0,69584.0,0.57520286]
[1730541348813,0.21673323,69592.0,69591.0,0.110411]
[1730541349043,0.21673323,69592.0,69591.0,0.35802282]
[1730541349234,0.001644,69592.0,69591.0,0.35802282]
[1730541349489,0.001644,69592.0,69591.0,0.45868932]
[1730541350200,0.001644,69592.0,69591.0,0.46168932]
[1730541350860,0.001644,69592.0,69591.0,0.46768932]
[1730541351783,0.001644,69592.0,69591.0,0.36702282]
[1730541364946,0.01507502,69592.0,69591.0,0.36702282]
[1730541366982,0.01507651,69592.0,69591.0,0.36702282]
[1730541367416,0.01507651,69592.0,69591.0,0.25786625]
[1730541368524,0.10757651,69592.0,69591.0,0.25286625]
[1730541368747,0.18997651,69592.0,69591.0,0.25286625]
[1730541370533,0.176544,69592.0,69591.0,0.25286625]
[1730541370751,0.18997792,69592.0,69591.0,0.25286625]
[1730541372332,0.18997792,69592.0,69591.0,0.15227925]
[1730541372565,0.29056392,69592.0,69591.0,0.15227925]
[1730541374155,0.29056773,69592.0,69591.0,0.15227925]
[1730541374901,0.29056773,69592.0,69591.0,0.14745525]
[1730541379363,0.29056773,69592.0,69591.0,0.14445525]
[1730541379595,0.29056773,69592.0,69591.0,0.13845525]
[1730541380519,0.29056773,69592.0,69591.0,0.14345525]
[1730541380725,0.29056773,69592.0,69591.0,0.14445525]
[1730541381379,0.27713,69592.0,69591.0,0.14345525]
[1730541381609,0.29055509,69592.0,69591.0,0.14345525]
[1730541382070,0.29055509,69592.0,69591.0,0.13845525]
[1730541382504,0.29055509,69592.0,69591.0,0.14045525]
[1730541382918,0.29055509,69592.0,69591.0,0.13945525]
[1730541384864,0.27713,69592.0,69591.0,0.13945525]